[Event "Titled Tuesday Blitz August 1 Late 2023"]
[White "Vovk, Orest"]
[Black "Klukin, Kirill"]
[WhiteFideId "14113490"]
[BlackFideId "24199273"]
[WhiteElo "2517"]
[BlackElo "2688"]
[Result "1-0"]
[Round "4"]
[TimeControl "180+1"]
[Date "2023.08.01"]
[WhiteClock "0:00:20"]
[BlackClock "0:00:02"]
[Board "47"]

1. g4 {[%clk 0:02:55]}  e5 {[%clk 0:02:53]} 2. g5 {[%clk 0:02:54]}  Ne7 {[%clk 0:02:52]} 3. h4 {[%clk 0:02:51]}  h5 {[%clk 0:02:51]} 4. gxh6 {[%clk 0:02:47]}  Rxh6 {[%clk 0:02:51]} 5. d4 {[%clk 0:02:47]}  Rd6 {[%clk 0:02:45]} 6. c3 {[%clk 0:02:47]}  c5 {[%clk 0:02:42]} 7. Nf3 {[%clk 0:02:42]}  Nbc6 {[%clk 0:02:39]} 8. Nbd2 {[%clk 0:02:21]}  exd4 {[%clk 0:02:28]} 9. Ne4 {[%clk 0:02:19]}  Re6 {[%clk 0:01:19]} 10. Nxc5 {[%clk 0:02:09]}  Rg6 {[%clk 0:00:41]} 11. h5 {[%clk 0:02:06]}  Rg4 {[%clk 0:00:23]} 12. Bh3 {[%clk 0:02:00]}  d6 {[%clk 0:00:24]} 13. Bxg4 {[%clk 0:01:52]}  Bxg4 {[%clk 0:00:24]} 14. Ne4 {[%clk 0:01:44]}  d5 {[%clk 0:00:24]} 15. Neg5 {[%clk 0:01:40]}  dxc3 {[%clk 0:00:22]} 16. bxc3 {[%clk 0:01:39]}  Nf5 {[%clk 0:00:22]} 17. Qa4 {[%clk 0:01:31]}  d4 {[%clk 0:00:19]} 18. cxd4 {[%clk 0:01:23]}  Bb4+ {[%clk 0:00:18]} 19. Kf1 {[%clk 0:01:19]}  Nxd4 {[%clk 0:00:16]} 20. h6 {[%clk 0:01:07]}  Nxf3 {[%clk 0:00:04]} 21. h7 {[%clk 0:00:40]}  Nh2+ {[%clk 0:00:01]} 22. Rxh2 {[%clk 0:00:36]}  Ke7 {[%clk 0:00:01]} 23. h8=Q {[%clk 0:00:28]}  Qxh8 {[%clk 0:00:02]} 24. Rxh8 {[%clk 0:00:29]}  Rxh8 {[%clk 0:00:02]} 25. a3 {[%clk 0:00:20]}  Bd6 {[%clk 0:00:02]} 1-0


[Site "https://www.chess.com"]

[Event "Titled Tuesday Blitz August 1 Late 2023"]
[White "Kuzmicz, Krystian"]
[Black "Kanakaris, Georgios"]
[WhiteFideId "1119125"]
[BlackFideId "4209460"]
[WhiteElo "2687"]
[BlackElo "2517"]
[Result "1-0"]
[Round "4"]
[TimeControl "180+1"]
[Date "2023.08.01"]
[WhiteClock "0:01:28"]
[BlackClock "0:00:12"]
[Board "48"]

1. e4 {[%clk 0:03:00]}  e6 {[%clk 0:02:49]} 2. d3 {[%clk 0:02:56]}  d5 {[%clk 0:02:49]} 3. Nd2 {[%clk 0:02:56]}  Nf6 {[%clk 0:02:50]} 4. g3 {[%clk 0:02:56]}  c5 {[%clk 0:02:50]} 5. Bg2 {[%clk 0:02:56]}  Nc6 {[%clk 0:02:49]} 6. f4 {[%clk 0:02:57]}  Be7 {[%clk 0:02:47]} 7. e5 {[%clk 0:02:55]}  Ng8 {[%clk 0:02:46]} 8. Ne2 {[%clk 0:02:55]}  h5 {[%clk 0:02:46]} 9. Nf3 {[%clk 0:02:55]}  Nh6 {[%clk 0:02:46]} 10. Be3 {[%clk 0:02:55]}  b5 {[%clk 0:02:38]} 11. h3 {[%clk 0:02:54]}  Nf5 {[%clk 0:02:28]} 12. Bf2 {[%clk 0:02:54]}  Qa5+ {[%clk 0:02:24]} 13. c3 {[%clk 0:02:52]}  b4 {[%clk 0:02:24]} 14. O-O {[%clk 0:02:38]}  bxc3 {[%clk 0:02:23]} 15. bxc3 {[%clk 0:02:38]}  Ba6 {[%clk 0:02:21]} 16. Rb1 {[%clk 0:02:34]}  c4 {[%clk 0:02:08]} 17. d4 {[%clk 0:02:27]}  Bb5 {[%clk 0:02:01]} 18. g4 {[%clk 0:02:19]}  hxg4 {[%clk 0:01:58]} 19. hxg4 {[%clk 0:02:19]}  Nh4 {[%clk 0:01:48]} 20. Nxh4 {[%clk 0:02:07]}  Bxh4 {[%clk 0:01:48]} 21. Be3 {[%clk 0:02:06]}  Be7 {[%clk 0:01:45]} 22. f5 {[%clk 0:02:01]}  Ba4 {[%clk 0:01:39]} 23. Qc1 {[%clk 0:01:55]}  O-O-O {[%clk 0:01:32]} 24. Qb2 {[%clk 0:01:48]}  Rd7 {[%clk 0:00:56]} 25. Nf4 {[%clk 0:01:45]}  Bg5 {[%clk 0:00:45]} 26. Nxd5 {[%clk 0:01:39]}  exd5 {[%clk 0:00:43]} 27. Bxg5 {[%clk 0:01:38]}  Qc7 {[%clk 0:00:27]} 28. Bf4 {[%clk 0:01:30]}  Qa5 {[%clk 0:00:12]} 29. e6 {[%clk 0:01:28]} 1-0


[Site "https://www.chess.com"]

[Event "Titled Tuesday Blitz August 1 Late 2023"]
[White "Droin, Augustin"]
[Black "Morefield, Jason"]
[WhiteFideId "45105987"]
[BlackFideId "30920825"]
[WhiteElo "2516"]
[BlackElo "2676"]
[Result "0-1"]
[Round "4"]
[TimeControl "180+1"]
[Date "2023.08.01"]
[WhiteClock "0:01:32"]
[BlackClock "0:01:04"]
[Board "49"]

1. e4 {[%clk 0:03:00]}  c5 {[%clk 0:02:59]} 2. Nf3 {[%clk 0:02:57]}  d6 {[%clk 0:02:59]} 3. d4 {[%clk 0:02:57]}  cxd4 {[%clk 0:03:00]} 4. Nxd4 {[%clk 0:02:57]}  Nf6 {[%clk 0:03:01]} 5. Bb5+ {[%clk 0:02:58]}  Bd7 {[%clk 0:02:56]} 6. c4 {[%clk 0:02:57]}  Nxe4 {[%clk 0:02:53]} 7. Qf3 {[%clk 0:02:57]}  Bxb5 {[%clk 0:02:43]} 8. Nxb5 {[%clk 0:02:55]}  d5 {[%clk 0:02:18]} 9. cxd5 {[%clk 0:02:52]}  Qa5+ {[%clk 0:02:12]} 10. N1c3 {[%clk 0:02:48]}  Nxc3 {[%clk 0:02:10]} 11. Nxc3 {[%clk 0:02:49]}  Nd7 {[%clk 0:02:02]} 12. O-O {[%clk 0:02:48]}  g6 {[%clk 0:01:58]} 13. Re1 {[%clk 0:02:28]}  Bg7 {[%clk 0:01:52]} 14. d6 {[%clk 0:02:28]}  e6 {[%clk 0:01:44]} 15. Qxb7 {[%clk 0:02:22]}  Rb8 {[%clk 0:01:43]} 16. Qc6 {[%clk 0:02:07]}  Qc5 {[%clk 0:01:28]} 17. Qa4 {[%clk 0:02:05]}  Rb4 {[%clk 0:01:18]} 18. Be3 {[%clk 0:01:34]}  Rxa4 {[%clk 0:01:11]} 19. Bxc5 {[%clk 0:01:32]}  Bxc3 {[%clk 0:01:04]} 0-1


[Site "https://www.chess.com"]

[Event "Titled Tuesday Blitz August 1 Late 2023"]
[White "FromTexas54"]
[Black "Rosen, Eric"]
[BlackFideId "2032562"]
[WhiteElo "2512"]
[BlackElo "2676"]
[Result "0-1"]
[Round "4"]
[TimeControl "180+1"]
[Date "2023.08.01"]
[WhiteClock "0:00:03"]
[BlackClock "0:00:46"]
[Board "50"]

1. Nf3 {[%clk 0:03:00]}  d5 {[%clk 0:02:59]} 2. g3 {[%clk 0:03:00]}  Nf6 {[%clk 0:03:00]} 3. Bg2 {[%clk 0:03:01]}  e6 {[%clk 0:03:01]} 4. O-O {[%clk 0:03:02]}  Be7 {[%clk 0:02:54]} 5. c4 {[%clk 0:03:02]}  d4 {[%clk 0:02:54]} 6. d3 {[%clk 0:02:55]}  c5 {[%clk 0:02:54]} 7. b4 {[%clk 0:02:55]}  O-O {[%clk 0:02:52]} 8. a3 {[%clk 0:02:54]}  Nc6 {[%clk 0:02:51]} 9. Nbd2 {[%clk 0:02:47]}  cxb4 {[%clk 0:02:51]} 10. Ng5 {[%clk 0:02:47]}  e5 {[%clk 0:02:49]} 11. Nde4 {[%clk 0:02:42]}  Nd7 {[%clk 0:02:43]} 12. axb4 {[%clk 0:02:32]}  Bxb4 {[%clk 0:02:41]} 13. Qa4 {[%clk 0:02:14]}  a5 {[%clk 0:02:33]} 14. Nf3 {[%clk 0:02:07]}  f5 {[%clk 0:02:30]} 15. Ned2 {[%clk 0:02:06]}  Nc5 {[%clk 0:02:26]} 16. Qc2 {[%clk 0:02:06]}  Qd6 {[%clk 0:02:22]} 17. Nb3 {[%clk 0:02:01]}  b6 {[%clk 0:02:14]} 18. Nxe5 {[%clk 0:01:57]}  Qxe5 {[%clk 0:02:04]} 19. Bxc6 {[%clk 0:01:55]}  Ra7 {[%clk 0:02:04]} 20. Bf4 {[%clk 0:01:51]}  Qf6 {[%clk 0:02:03]} 21. Bd5+ {[%clk 0:01:47]}  Kh8 {[%clk 0:02:03]} 22. Nxc5 {[%clk 0:01:40]}  bxc5 {[%clk 0:02:03]} 23. h4 {[%clk 0:01:34]}  Bd7 {[%clk 0:02:01]} 24. e3 {[%clk 0:01:31]}  dxe3 {[%clk 0:01:52]} 25. Bxe3 {[%clk 0:01:32]}  Qg6 {[%clk 0:01:42]} 26. Bf4 {[%clk 0:01:27]}  a4 {[%clk 0:01:42]} 27. Kg2 {[%clk 0:01:01]}  a3 {[%clk 0:01:42]} 28. Rh1 {[%clk 0:01:00]}  Qf6 {[%clk 0:01:36]} 29. h5 {[%clk 0:00:52]}  Bc6 {[%clk 0:01:30]} 30. Qe2 {[%clk 0:00:46]}  Bxd5+ {[%clk 0:01:27]} 31. cxd5 {[%clk 0:00:46]}  Re7 {[%clk 0:01:27]} 32. Qf3 {[%clk 0:00:43]}  Rd7 {[%clk 0:01:18]} 33. d6 {[%clk 0:00:37]}  Re8 {[%clk 0:01:07]} 34. Qc6 {[%clk 0:00:33]}  Red8 {[%clk 0:01:05]} 35. Qd5 {[%clk 0:00:28]}  h6 {[%clk 0:01:02]} 36. Rab1 {[%clk 0:00:18]}  Kh7 {[%clk 0:00:58]} 37. d4 {[%clk 0:00:18]}  Rxd6 {[%clk 0:00:53]} 38. Bxd6 {[%clk 0:00:18]}  Rxd6 {[%clk 0:00:54]} 39. Qf3 {[%clk 0:00:17]}  Rxd4 {[%clk 0:00:54]} 40. Rbd1 {[%clk 0:00:10]}  a2 {[%clk 0:00:51]} 41. Ra1 {[%clk 0:00:09]}  Rd2 {[%clk 0:00:51]} 42. Qb3 {[%clk 0:00:09]}  Qc6+ {[%clk 0:00:51]} 43. Kh3 {[%clk 0:00:04]}  Qe4 {[%clk 0:00:47]} 44. Rxa2 {[%clk 0:00:03]}  Qxh1# {[%clk 0:00:46]} 0-1


[Site "https://www.chess.com"]

[Event "Titled Tuesday Blitz August 1 Late 2023"]
[White "Papp, Levente"]
[Black "Mordechai, Hanan"]
[WhiteFideId "751243"]
[BlackFideId "2804166"]
[WhiteElo "2675"]
[BlackElo "2511"]
[Result "1-0"]
[Round "4"]
[TimeControl "180+1"]
[Date "2023.08.01"]
[WhiteClock "0:00:20"]
[BlackClock "0:00:06"]
[Board "51"]

1. c3 {[%clk 0:03:00]}  e5 {[%clk 0:02:57]} 2. d4 {[%clk 0:03:01]}  exd4 {[%clk 0:02:57]} 3. cxd4 {[%clk 0:03:02]}  Nf6 {[%clk 0:02:57]} 4. Nc3 {[%clk 0:03:01]}  d5 {[%clk 0:02:57]} 5. Bg5 {[%clk 0:03:01]}  Be7 {[%clk 0:02:57]} 6. e3 {[%clk 0:03:00]}  c6 {[%clk 0:02:56]} 7. Bd3 {[%clk 0:03:00]}  h6 {[%clk 0:02:55]} 8. Bh4 {[%clk 0:03:00]}  O-O {[%clk 0:02:56]} 9. Nge2 {[%clk 0:02:59]}  a5 {[%clk 0:02:47]} 10. O-O {[%clk 0:02:54]}  b5 {[%clk 0:02:47]} 11. a4 {[%clk 0:02:44]}  b4 {[%clk 0:02:47]} 12. Nb1 {[%clk 0:02:45]}  Ba6 {[%clk 0:02:46]} 13. f3 {[%clk 0:02:21]}  Re8 {[%clk 0:02:38]} 14. Bf2 {[%clk 0:02:21]}  Bxd3 {[%clk 0:02:30]} 15. Qxd3 {[%clk 0:02:20]}  c5 {[%clk 0:02:31]} 16. dxc5 {[%clk 0:02:18]}  Bxc5 {[%clk 0:02:32]} 17. Nd2 {[%clk 0:02:00]}  Qb6 {[%clk 0:02:28]} 18. Nd4 {[%clk 0:01:55]}  Nbd7 {[%clk 0:02:18]} 19. N2b3 {[%clk 0:01:45]}  Ne5 {[%clk 0:02:17]} 20. Qb5 {[%clk 0:01:45]}  Qxb5 {[%clk 0:02:07]} 21. Nxb5 {[%clk 0:01:23]}  Bb6 {[%clk 0:02:08]} 22. e4 {[%clk 0:00:59]}  Bxf2+ {[%clk 0:02:05]} 23. Rxf2 {[%clk 0:00:59]}  dxe4 {[%clk 0:02:06]} 24. Nc7 {[%clk 0:00:58]}  Nd3 {[%clk 0:01:27]} 25. Rd2 {[%clk 0:00:53]}  Ne5 {[%clk 0:00:51]} 26. Nxa8 {[%clk 0:00:52]}  Rxa8 {[%clk 0:00:48]} 27. fxe4 {[%clk 0:00:35]}  Nxe4 {[%clk 0:00:47]} 28. Rd5 {[%clk 0:00:35]}  Ng4 {[%clk 0:00:22]} 29. Nxa5 {[%clk 0:00:29]}  Rc8 {[%clk 0:00:21]} 30. Re1 {[%clk 0:00:26]}  Ngf6 {[%clk 0:00:12]} 31. Rd4 {[%clk 0:00:26]}  Ng5 {[%clk 0:00:10]} 32. Nb3 {[%clk 0:00:18]}  Rc2 {[%clk 0:00:10]} 33. Rd2 {[%clk 0:00:19]}  Rc4 {[%clk 0:00:09]} 34. a5 {[%clk 0:00:18]}  Nfe4 {[%clk 0:00:09]} 35. Rd4 {[%clk 0:00:19]}  Rc2 {[%clk 0:00:09]} 36. Rdxe4 {[%clk 0:00:19]}  Nxe4 {[%clk 0:00:09]} 37. Rxe4 {[%clk 0:00:20]}  Rxb2 {[%clk 0:00:06]} 38. Rxb4 {[%clk 0:00:20]} 1-0


[Site "https://www.chess.com"]

[Event "Titled Tuesday Blitz August 1 Late 2023"]
[White "Korchmar, Vasiliy"]
[Black "Mindhunter08"]
[WhiteFideId "24131750"]
[WhiteElo "2666"]
[BlackElo "2510"]
[Result "1-0"]
[Round "4"]
[TimeControl "180+1"]
[Date "2023.08.01"]
[WhiteClock "0:00:08"]
[BlackClock "0:00:01"]
[Board "52"]

1. e4 {[%clk 0:02:59]}  e5 {[%clk 0:02:59]} 2. Nf3 {[%clk 0:02:57]}  Nc6 {[%clk 0:03:00]} 3. Bc4 {[%clk 0:02:57]}  Nf6 {[%clk 0:03:00]} 4. d3 {[%clk 0:02:56]}  Bc5 {[%clk 0:03:00]} 5. c3 {[%clk 0:02:56]}  O-O {[%clk 0:03:00]} 6. Bg5 {[%clk 0:02:56]}  h6 {[%clk 0:02:57]} 7. Bh4 {[%clk 0:02:56]}  Be7 {[%clk 0:02:45]} 8. Nbd2 {[%clk 0:02:54]}  d6 {[%clk 0:02:41]} 9. a4 {[%clk 0:02:51]}  Na5 {[%clk 0:02:37]} 10. Ba2 {[%clk 0:02:50]}  c5 {[%clk 0:02:38]} 11. O-O {[%clk 0:02:47]}  Qc7 {[%clk 0:02:30]} 12. Re1 {[%clk 0:02:46]}  Nc6 {[%clk 0:02:28]} 13. Nf1 {[%clk 0:02:45]}  Be6 {[%clk 0:02:21]} 14. Ne3 {[%clk 0:02:45]}  Rad8 {[%clk 0:02:02]} 15. Bxf6 {[%clk 0:02:44]}  Bxf6 {[%clk 0:02:03]} 16. Nd5 {[%clk 0:02:44]}  Bxd5 {[%clk 0:02:03]} 17. Bxd5 {[%clk 0:02:45]}  Ne7 {[%clk 0:01:58]} 18. Bc4 {[%clk 0:02:43]}  Ng6 {[%clk 0:01:57]} 19. Nd2 {[%clk 0:02:40]}  Bg5 {[%clk 0:01:52]} 20. Nf1 {[%clk 0:02:39]}  Kh7 {[%clk 0:01:31]} 21. Ng3 {[%clk 0:02:22]}  Nf4 {[%clk 0:01:30]} 22. Nf5 {[%clk 0:02:20]}  g6 {[%clk 0:01:23]} 23. Ne3 {[%clk 0:02:18]}  Qd7 {[%clk 0:01:19]} 24. g3 {[%clk 0:02:17]}  Nh3+ {[%clk 0:01:12]} 25. Kg2 {[%clk 0:02:18]}  Bxe3 {[%clk 0:01:05]} 26. Rxe3 {[%clk 0:02:18]}  Ng5 {[%clk 0:01:06]} 27. h4 {[%clk 0:01:44]}  Qh3+ {[%clk 0:00:54]} 28. Kg1 {[%clk 0:01:44]}  Ne6 {[%clk 0:00:44]} 29. Bd5 {[%clk 0:01:43]}  b6 {[%clk 0:00:35]} 30. a5 {[%clk 0:01:43]}  Nc7 {[%clk 0:00:33]} 31. axb6 {[%clk 0:01:19]}  axb6 {[%clk 0:00:29]} 32. Bb3 {[%clk 0:01:16]}  Qd7 {[%clk 0:00:21]} 33. h5 {[%clk 0:01:13]}  Ra8 {[%clk 0:00:19]} 34. hxg6+ {[%clk 0:01:10]}  fxg6 {[%clk 0:00:20]} 35. Rxa8 {[%clk 0:01:09]}  Nxa8 {[%clk 0:00:19]} 36. Kg2 {[%clk 0:01:09]}  Nc7 {[%clk 0:00:18]} 37. Re1 {[%clk 0:01:09]}  Kg7 {[%clk 0:00:17]} 38. Qd2 {[%clk 0:01:08]}  Qe7 {[%clk 0:00:17]} 39. Rh1 {[%clk 0:01:07]}  g5 {[%clk 0:00:17]} 40. Ra1 {[%clk 0:01:05]}  Qf6 {[%clk 0:00:15]} 41. Ra7 {[%clk 0:01:03]}  Rc8 {[%clk 0:00:08]} 42. Rb7 {[%clk 0:00:58]}  b5 {[%clk 0:00:08]} 43. Bd1 {[%clk 0:00:50]}  Kh8 {[%clk 0:00:08]} 44. Bg4 {[%clk 0:00:50]}  Ne6 {[%clk 0:00:08]} 45. Rxb5 {[%clk 0:00:46]}  Rf8 {[%clk 0:00:08]} 46. Rb6 {[%clk 0:00:40]}  Ng7 {[%clk 0:00:07]} 47. Qe3 {[%clk 0:00:32]}  h5 {[%clk 0:00:07]} 48. Bd1 {[%clk 0:00:32]}  h4 {[%clk 0:00:06]} 49. gxh4 {[%clk 0:00:30]}  gxh4 {[%clk 0:00:07]} 50. Kf1 {[%clk 0:00:27]}  Qg6 {[%clk 0:00:06]} 51. Rb7 {[%clk 0:00:23]}  Ne6 {[%clk 0:00:05]} 52. Qh3 {[%clk 0:00:16]}  Rf4 {[%clk 0:00:02]} 53. Re7 {[%clk 0:00:12]}  Ng5 {[%clk 0:00:01]} 54. Qc8+ {[%clk 0:00:10]}  Qg8 {[%clk 0:00:02]} 55. Re8 {[%clk 0:00:10]}  Qxe8 {[%clk 0:00:01]} 56. Qxe8+ {[%clk 0:00:08]}  Kg7 {[%clk 0:00:02]} 57. Qe7+ {[%clk 0:00:08]}  Kg6 {[%clk 0:00:02]} 58. Qxd6+ {[%clk 0:00:08]}  Rf6 {[%clk 0:00:02]} 59. Qxe5 {[%clk 0:00:08]}  h3 {[%clk 0:00:03]} 60. Qg3 {[%clk 0:00:04]}  Kh6 {[%clk 0:00:02]} 61. f4 {[%clk 0:00:05]}  c4 {[%clk 0:00:01]} 62. Qxg5+ {[%clk 0:00:04]}  Kh7 {[%clk 0:00:02]} 63. Qxf6 {[%clk 0:00:05]}  h2 {[%clk 0:00:03]} 64. Qh4+ {[%clk 0:00:05]}  Kg7 {[%clk 0:00:03]} 65. Qxh2 {[%clk 0:00:06]}  cxd3 {[%clk 0:00:04]} 66. Qg3+ {[%clk 0:00:07]}  Kf6 {[%clk 0:00:01]} 67. Qxd3 {[%clk 0:00:08]} 1-0


[Site "https://www.chess.com"]

[Event "Titled Tuesday Blitz August 1 Late 2023"]
[White "Papayan, Oleg"]
[Black "Annaberdiyev, Meylis"]
[WhiteFideId "4193911"]
[BlackFideId "14000563"]
[WhiteElo "2508"]
[BlackElo "2665"]
[Result "0-1"]
[Round "4"]
[TimeControl "180+1"]
[Date "2023.08.01"]
[WhiteClock "0:00:00"]
[BlackClock "0:00:32"]
[Board "54"]

1. e4 {[%clk 0:03:00]}  c5 {[%clk 0:02:59]} 2. d4 {[%clk 0:03:01]}  cxd4 {[%clk 0:02:59]} 3. Qxd4 {[%clk 0:03:02]}  Nc6 {[%clk 0:02:59]} 4. Qd3 {[%clk 0:03:02]}  Nf6 {[%clk 0:02:54]} 5. Nc3 {[%clk 0:03:03]}  e6 {[%clk 0:02:50]} 6. Bf4 {[%clk 0:03:02]}  Bb4 {[%clk 0:02:47]} 7. Ne2 {[%clk 0:03:02]}  d5 {[%clk 0:02:44]} 8. O-O-O {[%clk 0:03:03]}  O-O {[%clk 0:02:27]} 9. exd5 {[%clk 0:03:02]}  exd5 {[%clk 0:02:27]} 10. Nxd5 {[%clk 0:03:03]}  Nxd5 {[%clk 0:02:25]} 11. Qxd5 {[%clk 0:03:04]}  Be6 {[%clk 0:02:13]} 12. Qxd8 {[%clk 0:02:59]}  Rfxd8 {[%clk 0:02:14]} 13. a3 {[%clk 0:02:17]}  Bc5 {[%clk 0:02:14]} 14. f3 {[%clk 0:01:53]}  Rxd1+ {[%clk 0:02:04]} 15. Kxd1 {[%clk 0:01:54]}  Rd8+ {[%clk 0:02:04]} 16. Kc1 {[%clk 0:01:51]}  f6 {[%clk 0:01:55]} 17. Nc3 {[%clk 0:01:44]}  Ne5 {[%clk 0:01:30]} 18. Bxe5 {[%clk 0:01:19]}  fxe5 {[%clk 0:01:24]} 19. Bd3 {[%clk 0:01:19]}  Bd4 {[%clk 0:01:11]} 20. Ne4 {[%clk 0:00:58]}  h6 {[%clk 0:01:04]} 21. Re1 {[%clk 0:00:54]}  Kf7 {[%clk 0:00:59]} 22. c3 {[%clk 0:00:32]}  Bb6 {[%clk 0:00:37]} 23. Kc2 {[%clk 0:00:32]}  Bd7 {[%clk 0:00:35]} 24. Nd6+ {[%clk 0:00:30]}  Kf6 {[%clk 0:00:34]} 25. Nc4 {[%clk 0:00:17]}  Ba4+ {[%clk 0:00:33]} 26. b3 {[%clk 0:00:08]}  Bxb3+ {[%clk 0:00:33]} 27. Kxb3 {[%clk 0:00:09]}  Rxd3 {[%clk 0:00:34]} 28. Nxe5 {[%clk 0:00:02]}  Rxc3+ {[%clk 0:00:34]} 29. Kxc3 {[%clk 0:00:01]}  Ba5+ {[%clk 0:00:35]} 30. Kd4 {[%clk 0:00:01]}  Bxe1 {[%clk 0:00:35]} 31. Ng4+ {[%clk 0:00:02]}  Ke6 {[%clk 0:00:35]} 32. Ke4 {[%clk 0:00:01]}  Bc3 {[%clk 0:00:35]} 33. Ne3 {[%clk 0:00:02]}  Bb2 {[%clk 0:00:35]} 34. a4 {[%clk 0:00:02]}  Bc1 {[%clk 0:00:35]} 35. Nc4 {[%clk 0:00:02]}  a6 {[%clk 0:00:35]} 36. g4 {[%clk 0:00:02]}  b5 {[%clk 0:00:34]} 37. axb5 {[%clk 0:00:03]}  axb5 {[%clk 0:00:35]} 38. Na5 {[%clk 0:00:04]}  Kd6 {[%clk 0:00:33]} 39. Nb3 {[%clk 0:00:03]}  Bb2 {[%clk 0:00:33]} 40. h4 {[%clk 0:00:03]}  Bf6 {[%clk 0:00:31]} 41. h5 {[%clk 0:00:04]}  Bg5 {[%clk 0:00:31]} 42. f4 {[%clk 0:00:04]}  Bf6 {[%clk 0:00:31]} 43. Kf5 {[%clk 0:00:04]}  Kd5 {[%clk 0:00:32]} 44. g5 {[%clk 0:00:04]}  Bc3 {[%clk 0:00:32]} 45. Kg6 {[%clk 0:00:04]}  Kc4 {[%clk 0:00:32]} 46. Nc1 {[%clk 0:00:03]}  Bb2 {[%clk 0:00:30]} 47. Ne2 {[%clk 0:00:02]}  b4 {[%clk 0:00:31]} 48. gxh6 {[%clk 0:00:02]}  gxh6 {[%clk 0:00:32]} 49. Kxh6 {[%clk 0:00:03]}  b3 {[%clk 0:00:32]} 50. f5 {[%clk 0:00:03]}  Be5 {[%clk 0:00:32]} 51. Kg6 {[%clk 0:00:00]}  b2 {[%clk 0:00:32]} 0-1


[Site "https://www.chess.com"]

[Event "Titled Tuesday Blitz August 1 Late 2023"]
[White "Manukian, Artak"]
[Black "Fishbein, Alexander"]
[WhiteFideId "13301373"]
[BlackFideId "2000377"]
[WhiteElo "2482"]
[BlackElo "2643"]
[Result "1/2-1/2"]
[Round "4"]
[TimeControl "180+1"]
[Date "2023.08.01"]
[WhiteClock "0:00:11"]
[BlackClock "0:00:19"]
[Board "60"]

1. e4 {[%clk 0:03:00]}  c5 {[%clk 0:02:59]} 2. Nf3 {[%clk 0:02:59]}  d6 {[%clk 0:02:59]} 3. Bb5+ {[%clk 0:02:58]}  Bd7 {[%clk 0:02:58]} 4. Bxd7+ {[%clk 0:02:58]}  Nxd7 {[%clk 0:02:58]} 5. c4 {[%clk 0:02:59]}  Ngf6 {[%clk 0:02:58]} 6. Nc3 {[%clk 0:02:59]}  e6 {[%clk 0:02:58]} 7. d4 {[%clk 0:02:58]}  cxd4 {[%clk 0:02:58]} 8. Nxd4 {[%clk 0:02:59]}  a6 {[%clk 0:02:58]} 9. O-O {[%clk 0:02:58]}  Be7 {[%clk 0:02:58]} 10. b3 {[%clk 0:02:57]}  O-O {[%clk 0:02:58]} 11. Bb2 {[%clk 0:02:56]}  Qa5 {[%clk 0:02:56]} 12. Qe2 {[%clk 0:02:55]}  Qh5 {[%clk 0:02:54]} 13. Qxh5 {[%clk 0:02:49]}  Nxh5 {[%clk 0:02:54]} 14. a4 {[%clk 0:02:40]}  Nc5 {[%clk 0:02:50]} 15. Rab1 {[%clk 0:02:35]}  Bf6 {[%clk 0:02:45]} 16. Nde2 {[%clk 0:02:30]}  Bxc3 {[%clk 0:02:35]} 17. Nxc3 {[%clk 0:02:25]}  Nxb3 {[%clk 0:02:35]} 18. Bc1 {[%clk 0:02:17]}  Nxc1 {[%clk 0:02:32]} 19. Rfxc1 {[%clk 0:02:18]}  Rac8 {[%clk 0:02:27]} 20. Ne2 {[%clk 0:02:14]}  Nf6 {[%clk 0:02:25]} 21. f3 {[%clk 0:02:12]}  Rc7 {[%clk 0:02:21]} 22. Rb6 {[%clk 0:02:10]}  d5 {[%clk 0:02:17]} 23. cxd5 {[%clk 0:02:06]}  Rxc1+ {[%clk 0:02:15]} 24. Nxc1 {[%clk 0:02:07]}  exd5 {[%clk 0:02:13]} 25. exd5 {[%clk 0:01:54]}  Nxd5 {[%clk 0:02:11]} 26. Rxb7 {[%clk 0:01:55]}  h5 {[%clk 0:02:03]} 27. Ra7 {[%clk 0:01:14]}  Re8 {[%clk 0:01:55]} 28. Kf2 {[%clk 0:01:06]}  Rc8 {[%clk 0:01:53]} 29. Nd3 {[%clk 0:01:05]}  Rc2+ {[%clk 0:01:52]} 30. Kg3 {[%clk 0:01:04]}  g5 {[%clk 0:01:42]} 31. h4 {[%clk 0:00:56]}  gxh4+ {[%clk 0:01:37]} 32. Kh3 {[%clk 0:00:52]}  Rd2 {[%clk 0:01:35]} 33. Ne5 {[%clk 0:00:48]}  Nf4+ {[%clk 0:01:29]} 34. Kxh4 {[%clk 0:00:47]}  Rxg2 {[%clk 0:01:24]} 35. Rxa6 {[%clk 0:00:33]}  Kg7 {[%clk 0:01:08]} 36. a5 {[%clk 0:00:28]}  f6 {[%clk 0:01:06]} 37. Ra7+ {[%clk 0:00:27]}  Kh6 {[%clk 0:00:59]} 38. Nf7+ {[%clk 0:00:27]}  Kg6 {[%clk 0:01:00]} 39. Nh8+ {[%clk 0:00:22]}  Kf5 {[%clk 0:00:59]} 40. a6 {[%clk 0:00:19]}  Rh2+ {[%clk 0:00:57]} 41. Kg3 {[%clk 0:00:18]}  Rg2+ {[%clk 0:00:57]} 42. Kh4 {[%clk 0:00:18]}  Rg8 {[%clk 0:00:48]} 43. Rh7 {[%clk 0:00:17]}  Ng2+ {[%clk 0:00:38]} 44. Kh3 {[%clk 0:00:17]}  Nf4+ {[%clk 0:00:37]} 45. Kh4 {[%clk 0:00:17]}  Rg1 {[%clk 0:00:34]} 46. a7 {[%clk 0:00:16]}  Ra1 {[%clk 0:00:34]} 47. Nf7 {[%clk 0:00:13]}  Ra3 {[%clk 0:00:32]} 48. Kg3 {[%clk 0:00:09]}  Ne2+ {[%clk 0:00:29]} 49. Kf2 {[%clk 0:00:09]}  Nd4 {[%clk 0:00:30]} 50. Nd6+ {[%clk 0:00:09]}  Ke6 {[%clk 0:00:27]} 51. Nc8 {[%clk 0:00:09]}  Rxf3+ {[%clk 0:00:23]} 52. Kg2 {[%clk 0:00:10]}  Ra3 {[%clk 0:00:22]} 53. Rxh5 {[%clk 0:00:10]}  Nc6 {[%clk 0:00:20]} 54. Rh8 {[%clk 0:00:10]}  Nxa7 {[%clk 0:00:19]} 55. Nxa7 {[%clk 0:00:10]}  Rxa7 {[%clk 0:00:19]} 56. Kf3 {[%clk 0:00:11]}  Ra4 {[%clk 0:00:19]} 57. Rh5 {[%clk 0:00:10]}  f5 {[%clk 0:00:19]} 58. Rh8 {[%clk 0:00:10]}  Ke5 {[%clk 0:00:17]} 59. Re8+ {[%clk 0:00:10]}  Kf6 {[%clk 0:00:17]} 60. Rf8+ {[%clk 0:00:11]}  Kg6 {[%clk 0:00:18]} 61. Rg8+ {[%clk 0:00:11]}  Kf7 {[%clk 0:00:18]} 62. Rg5 {[%clk 0:00:10]}  Kf6 {[%clk 0:00:18]} 63. Rg8 {[%clk 0:00:11]}  Ra3+ {[%clk 0:00:17]} 64. Kf4 {[%clk 0:00:10]}  Ra4+ {[%clk 0:00:18]} 65. Kf3 {[%clk 0:00:11]}  Ra1 {[%clk 0:00:18]} 66. Rf8+ {[%clk 0:00:10]}  Ke5 {[%clk 0:00:18]} 67. Re8+ {[%clk 0:00:10]}  Kf6 {[%clk 0:00:18]} 68. Rf8+ {[%clk 0:00:10]}  Ke5 {[%clk 0:00:19]} 69. Re8+ {[%clk 0:00:11]}  Kf6 {[%clk 0:00:19]} 70. Rf8+ {[%clk 0:00:11]} 1/2-1/2


[Site "https://www.chess.com"]